bitfinex/quotes_BTCUSD_20251113
["timestamp","ask_amount","ask_price","bid_price","bid_amount"]
[1763051525578,0.19772697,101150.0,101130.0,0.41200438]
[1763051525823,0.20030687,101160.0,101130.0,0.98192638]
[1763051526070,0.20030687,101160.0,101130.0,0.34107751]
[1763051526319,0.001,101160.0,101130.0,1.17769046]
[1763051526596,0.19870768,101160.0,101130.0,0.54972985]
[1763051526811,0.19870768,101160.0,101130.0,0.98092638]
[1763051527182,0.001,101160.0,101130.0,1.17869138]
[1763051527188,0.001,101160.0,101150.0,0.96184887]
[1763051527428,0.00044586,101160.0,101150.0,0.96184887]
[1763051527634,0.1977066,101160.0,101150.0,0.323]
[1763051528006,0.19769016,101170.0,101150.0,0.323]
[1763051528191,0.19768858,101170.0,101150.0,0.323]
[1763051528405,0.09816915,101160.0,101150.0,0.323]
[1763051528604,0.1977066,101160.0,101150.0,0.323]
[1763051528814,0.31585773,101170.0,101150.0,0.323]
[1763051528815,0.20758467,101180.0,101160.0,0.323]
[1763051529025,0.22758467,101180.0,101160.0,0.323]
[1763051529209,0.29585621,101170.0,101160.0,0.323]
[1763051529548,0.2177013,101180.0,101160.0,0.323]
[1763051529990,0.19767079,101180.0,101160.0,0.323]
[1763051530202,0.19766881,101180.0,101160.0,0.323]
[1763051530434,0.31589505,101190.0,101160.0,0.96184887]
[1763051530747,0.001,101170.0,101160.0,0.96184887]
[1763051531162,0.22756514,101200.0,101160.0,1.1694408]
[1763051531370,0.09816915,101190.0,101160.0,1.1694408]
[1763051531583,0.001,101180.0,101170.0,0.83653593]
[1763051531827,0.001,101180.0,101170.0,1.15953593]
[1763051532075,0.19773574,101220.0,101180.0,0.53054644]
[1763051532312,0.31607701,101230.0,101220.0,0.323]
[1763051532313,0.00025087,101230.0,101220.0,0.323]
[1763051532774,0.00025087,101230.0,101220.0,0.96231283]
[1763051533004,0.00025087,101230.0,101220.0,1.15990223]
[1763051533214,0.00025087,101230.0,101220.0,1.20332097]
[1763051533424,0.00025087,101230.0,101220.0,0.5644721]
[1763051533636,0.00025087,101230.0,101220.0,0.96431283]
[1763051534261,0.00025087,101230.0,101220.0,0.32546396]
[1763051534605,0.00025087,101230.0,101220.0,0.32646396]
[1763051534805,0.00025087,101230.0,101220.0,1.16690223]
[1763051535123,0.00025087,101230.0,101220.0,1.16390223]
[1763051535344,0.00025087,101230.0,101220.0,0.32746396]
[1763051535503,0.00025087,101230.0,101220.0,1.85816983]
[1763051535703,0.00025087,101230.0,101220.0,1.84816984]
[1763051535918,0.00025087,101230.0,101220.0,0.96831283]
[1763051536110,0.00025087,101230.0,101220.0,1.20932097]
[1763051536309,0.00025087,101230.0,101220.0,1.01173157]
[1763051536510,0.00025087,101230.0,101220.0,0.3728827]
[1763051536763,0.00025087,101230.0,101220.0,0.96631283]
[1763051536991,0.00025087,101230.0,101220.0,1.16690223]
[1763051537204,0.00025087,101230.0,101220.0,1.21032097]
[1763051537582,0.00025087,101230.0,101220.0,1.20632097]
[1763051537855,0.00025087,101230.0,101220.0,1.01273157]
[1763051538062,0.00025087,101230.0,101220.0,0.96931283]
[1763051539176,0.00025087,101230.0,101220.0,1.16690223]
[1763051539414,0.00025087,101230.0,101220.0,1.21032097]
[1763051539619,0.00025087,101230.0,101220.0,1.01273157]
[1763051539870,0.00025087,101230.0,101220.0,0.3738827]
[1763051540084,0.00025087,101230.0,101220.0,1.01273157]
[1763051540531,0.00025087,101230.0,101220.0,1.21032097]
[1763051541621,0.00025087,101230.0,101220.0,0.3738827]
[1763051541838,0.00025087,101230.0,101220.0,1.01273157]
[1763051542059,0.00025087,101230.0,101220.0,1.21032097]
[1763051544577,0.00025087,101230.0,101220.0,1.01273157]
[1763051545407,0.00025087,101230.0,101220.0,1.21032097]
[1763051546674,0.19767395,101280.0,101260.0,0.96184887]
[1763051547156,0.295661,101270.0,101260.0,0.323]
[1763051547362,0.19767395,101280.0,101260.0,0.323]
[1763051547574,0.19749185,101270.0,101260.0,0.323]
[1763051547786,0.19751135,101260.0,101250.0,0.01878496]
[1763051547985,0.19751135,101260.0,101250.0,0.00046396]
[1763051548650,0.35289135,101260.0,101250.0,0.00046396]
[1763051548862,0.37289135,101260.0,101250.0,0.00046396]
[1763051549079,1.07958291,101260.0,101250.0,0.00046396]
[1763051549535,0.37289135,101260.0,101250.0,0.00046396]
[1763051549746,1.01174022,101260.0,101250.0,0.00046396]
[1763051549954,0.37289135,101260.0,101250.0,0.00046396]
[1763051550166,0.99274022,101260.0,101250.0,0.00446396]
[1763051550380,1.01274022,101260.0,101250.0,0.00046396]
[1763051550597,0.19760893,101210.0,101200.0,0.01925747]
[1763051550829,0.0004511,101210.0,101200.0,0.01925747]
[1763051551046,0.19806003,101210.0,101200.0,0.01925747]
[1763051551262,0.1976353,101200.0,101180.0,0.08973553]
[1763051551456,0.19763133,101200.0,101180.0,0.7285844]
[1763051551914,0.19806003,101210.0,101180.0,0.7285844]
[1763051552107,0.19762845,101200.0,101180.0,0.7285844]
[1763051552583,0.19806003,101210.0,101180.0,0.7285844]
[1763051552797,0.19762845,101200.0,101180.0,0.7285844]
[1763051553269,0.19762845,101200.0,101190.0,0.323]
[1763051553515,0.19764798,101190.0,101180.0,1.0515844]
[1763051553759,0.19764798,101190.0,101170.0,0.07050412]
[1763051553760,0.19766752,101180.0,101170.0,0.07050412]
[1763051553988,0.19764798,101190.0,101170.0,0.07050412]
[1763051553989,0.21764798,101190.0,101170.0,0.07050412]
[1763051554212,0.19764887,101190.0,101170.0,0.70935299]
[1763051554470,0.19766752,101180.0,101170.0,0.07050412]
[1763051554994,0.19768706,101170.0,101160.0,0.08894503]
[1763051555220,0.19772233,101160.0,101140.0,0.65632748]
[1763051555420,0.19768706,101170.0,101140.0,0.66599339]
[1763051555636,0.1977066,101160.0,101150.0,0.63884887]
[1763051555846,0.1977066,101160.0,101150.0,0.323]
[1763051556031,0.29583667,101180.0,101160.0,0.323]
[1763051556270,0.19768706,101170.0,101160.0,0.323]
[1763051557523,0.19768706,101170.0,101160.0,0.325]
[1763051557740,0.19768706,101170.0,101160.0,0.002]
[1763051557741,0.37082706,101170.0,101160.0,0.002]
[1763051558161,1.00967593,101170.0,101160.0,0.002]
[1763051559424,0.21768706,101170.0,101160.0,0.002]
[1763051559633,0.37082706,101170.0,101160.0,0.002]
[1763051559840,0.19772614,101150.0,101140.0,0.323]
[1763051560286,0.21772396,101160.0,101140.0,0.323]
[1763051560287,0.19770744,101160.0,101140.0,0.96184887]
[1763051560545,0.19770744,101160.0,101140.0,0.323]
[1763051561031,0.19772614,101150.0,101140.0,0.323]
[1763051561246,0.19772614,101150.0,101120.0,0.66753328]
[1763051561247,0.19776525,101130.0,101120.0,0.34189502]
[1763051561459,0.19776525,101130.0,101120.0,0.98074389]
[1763051561688,0.19776525,101130.0,101120.0,0.34189502]
[1763051561925,0.19774569,101140.0,101130.0,0.323]
[1763051562450,0.00045056,101140.0,101130.0,0.323]
[1763051562650,0.00045056,101140.0,101130.0,0.96184887]
[1763051562857,0.00045056,101140.0,101120.0,0.34189502]
[1763051563069,0.19819657,101140.0,101120.0,0.34189502]
[1763051563284,0.00045056,101140.0,101130.0,0.002]
[1763051563492,0.00045056,101140.0,101130.0,0.006]
[1763051563735,0.19819625,101140.0,101130.0,0.002]
[1763051563942,0.19720753,101140.0,101130.0,0.002]
[1763051564583,0.19776525,101130.0,101120.0,0.34589502]
[1763051564795,0.19720753,101140.0,101120.0,0.34189502]
[1763051565001,0.19776525,101130.0,101120.0,0.34389502]
[1763051565406,0.19776525,101130.0,101120.0,0.34189502]
[1763051565610,0.19720753,101140.0,101120.0,0.34189502]
[1763051565813,0.19720753,101140.0,101130.0,0.002]
[1763051566256,0.19720753,101140.0,101130.0,0.327]
[1763051566453,0.19720753,101140.0,101130.0,0.323]
[1763051567404,0.19776525,101130.0,101120.0,0.003]
[1763051567615,0.20772614,101150.0,101120.0,0.96184887]
[1763051567825,0.19772614,101150.0,101120.0,0.98194566]
[1763051568031,0.19774741,101140.0,101130.0,0.001]
[1763051568455,0.19774741,101140.0,101120.0,0.02009679]
[1763051568456,0.19776525,101130.0,101120.0,0.02009679]
[1763051569101,0.19776525,101130.0,101120.0,0.00045056]
[1763051569636,0.19776525,101130.0,101120.0,0.32545056]
[1763051570139,0.19776525,101130.0,101120.0,0.32745056]
[1763051570268,0.19776525,101130.0,101120.0,0.32545056]
[1763051570469,0.19776525,101130.0,101120.0,0.32845056]
[1763051570873,0.19776525,101130.0,101120.0,0.32645056]
[1763051571074,0.19776525,101130.0,101120.0,0.00445056]
[1763051571277,0.21776525,101130.0,101120.0,0.00445056]
[1763051572316,1.00975412,101130.0,101120.0,0.00445056]
[1763051572496,0.27879525,101130.0,101120.0,0.00445056]
[1763051572880,1.00975412,101130.0,101120.0,0.00445056]
[1763051573090,1.10823748,101130.0,101120.0,0.00445056]
[1763051573299,1.15165622,101130.0,101120.0,1e-08]
[1763051573601,0.51280735,101130.0,101120.0,0.00200001]
[1763051573833,0.19778481,101120.0,101110.0,5.631e-05]
[1763051574039,1.15692339,101120.0,101110.0,5.631e-05]
[1763051574242,0.51807452,101120.0,101110.0,5.631e-05]
[1763051575041,0.51907452,101120.0,101110.0,5.631e-05]
[1763051575446,1.15792339,101120.0,101110.0,5.631e-05]
[1763051575673,0.36593452,101120.0,101110.0,5.631e-05]
[1763051576089,0.31740452,101120.0,101110.0,5.631e-05]
[1763051576287,0.36593452,101120.0,101110.0,5.631e-05]
[1763051576567,0.31740452,101120.0,101110.0,0.00105631]
[1763051577838,0.29740452,101120.0,101110.0,0.00105631]
[1763051578528,0.00145056,101120.0,101110.0,0.00105631]
[1763051578842,0.00145056,101120.0,101110.0,0.51033505]
[1763051579747,0.00145056,101120.0,101110.0,0.50933505]
[1763051579945,0.00045056,101120.0,101110.0,0.50933505]
[1763051580099,0.00045056,101120.0,101110.0,0.51133505]
[1763051580313,0.00045056,101120.0,101110.0,0.51233505]
[1763051580711,0.19823537,101120.0,101110.0,0.51233505]
[1763051580916,0.19823537,101120.0,101110.0,0.02983588]
[1763051581126,0.19823537,101120.0,101110.0,0.51233505]
[1763051581127,0.00045056,101120.0,101110.0,0.51233505]
[1763051581779,0.00045056,101120.0,101110.0,0.53911462]
[1763051581980,0.00045056,101120.0,101110.0,0.51233505]
[1763051582183,0.00045056,101120.0,101110.0,0.53911462]
[1763051582385,0.00045056,101120.0,101110.0,0.51233505]
[1763051582946,0.00045056,101120.0,101110.0,0.71013942]
[1763051583140,0.00045056,101120.0,101110.0,1.03313942]
[1763051583396,0.00045056,101120.0,101110.0,1.07655816]
[1763051583803,0.00045056,101120.0,101110.0,1.61261647]
[1763051584010,0.00045056,101120.0,101110.0,1.07655816]
[1763051584164,0.19823537,101120.0,101110.0,0.35283588]
[1763051584372,0.00045056,101120.0,101110.0,0.32605631]
[1763051584725,0.00045056,101120.0,101110.0,0.83433505]
[1763051584937,0.00045056,101120.0,101110.0,0.83233505]
[1763051585175,0.00045056,101120.0,101110.0,0.83833505]
[1763051585578,0.00045056,101120.0,101110.0,1.03313942]
[1763051586000,0.00045056,101120.0,101110.0,0.83733505]
[1763051586217,0.00045056,101120.0,101110.0,0.83433505]
[1763051586431,0.00045056,101120.0,101110.0,1.07555816]
[1763051586639,0.00045056,101120.0,101110.0,0.87875379]
[1763051586839,0.00045056,101120.0,101110.0,1.07655816]
[1763051587078,0.00045056,101120.0,101110.0,0.87875379]
[1763051587343,0.00045056,101120.0,101110.0,1.07655816]
[1763051587544,0.00045056,101120.0,101110.0,1.14706228]
[1763051587725,0.00045056,101120.0,101110.0,0.43997917]
[1763051587923,0.00045056,101120.0,101110.0,0.32605631]
[1763051588125,0.00045056,101120.0,101110.0,0.83533505]
[1763051588926,0.00045056,101120.0,101110.0,0.32605631]
[1763051589128,0.00045056,101120.0,101110.0,0.83533505]
[1763051589312,0.00045056,101120.0,101110.0,0.32605631]
[1763051589684,0.24350537,101120.0,101110.0,0.32605631]
[1763051589825,0.24350537,101120.0,101110.0,0.00305631]
[1763051590036,0.00045056,101120.0,101110.0,0.32605631]
[1763051590239,0.00045056,101120.0,101110.0,1.03313942]
[1763051590446,0.00045056,101120.0,101110.0,0.83533505]
[1763051590654,0.00045056,101120.0,101110.0,1.10264354]
[1763051590872,0.00045056,101120.0,101110.0,0.90483917]
[1763051591029,0.00045056,101120.0,101110.0,1.10264354]
[1763051591444,0.00045056,101120.0,101110.0,1.10064354]
[1763051591645,0.00045056,101120.0,101110.0,1.14406228]
[1763051591873,0.00045056,101120.0,101110.0,1.14506228]
[1763051592087,0.00045056,101120.0,101110.0,0.39356043]
[1763051592297,0.19823537,101120.0,101110.0,0.39356043]
[1763051592491,0.19823537,101120.0,101110.0,0.32405631]
[1763051592717,0.19823537,101120.0,101110.0,0.00105631]
[1763051592718,0.00045056,101120.0,101110.0,0.00105631]
[1763051592921,0.00045056,101120.0,101110.0,0.51033505]
[1763051593137,0.00045056,101120.0,101110.0,0.00305631]
[1763051593340,0.00045056,101120.0,101100.0,1.02283663]
[1763051593557,0.00045056,101120.0,101110.0,0.50927874]
[1763051593916,0.00045056,101120.0,101100.0,0.52721448]
[1763051594100,0.00045056,101120.0,101110.0,0.50927874]
[1763051594304,0.00045056,101120.0,101110.0,0.70708311]
[1763051594943,0.00045056,101120.0,101110.0,0.70808311]
[1763051595320,0.00045056,101120.0,101110.0,1.03108311]
[1763051595930,0.00045056,101120.0,101110.0,1.03208311]
[1763051596721,0.00045056,101120.0,101110.0,0.83427874]
[1763051596975,0.00045056,101120.0,101110.0,1.07550185]
[1763051597220,0.00045056,101120.0,101110.0,1.10228142]
[1763051597489,0.00045056,101120.0,101110.0,1.07550185]
[1763051597742,0.00045056,101120.0,101110.0,1.58478059]
[1763051597977,0.00045056,101120.0,101110.0,1.61156016]
[1763051598207,0.00045056,101120.0,101110.0,1.67256651]
[1763051598652,0.00045056,101120.0,101110.0,1.70134608]
[1763051598877,0.00045056,101120.0,101110.0,1.67356651]
[1763051599106,0.00045056,101120.0,101110.0,1.6835665]
[1763051599333,0.00045056,101120.0,101110.0,1.6865665]
[1763051599567,0.00045056,101120.0,101110.0,0.9694834]
[1763051599818,0.00045056,101120.0,101110.0,0.83727874]
[1763051600057,0.00045056,101120.0,101110.0,0.51427874]
[1763051600683,0.00045056,101120.0,101110.0,1.03508311]
[1763051600904,0.00045056,101120.0,101110.0,0.83727874]
[1763051602064,0.00045056,101120.0,101110.0,0.328]
[1763051602299,0.19823537,101120.0,101110.0,0.328]
[1763051602529,0.19823537,101120.0,101110.0,0.005]
[1763051602761,0.19823537,101120.0,101110.0,0.003]
[1763051602994,0.00045056,101120.0,101110.0,0.323]
[1763051603231,0.00045056,101120.0,101110.0,0.327]
[1763051603685,0.24303746,101130.0,101110.0,0.327]
[1763051603686,0.24282197,101130.0,101110.0,0.327]
[1763051603923,0.19778481,101120.0,101110.0,0.32713916]
[1763051604201,0.04505451,101130.0,101110.0,0.32713916]
[1763051604435,0.27291394,101150.0,101120.0,0.50927874]
[1763051604679,0.27132811,101150.0,101120.0,0.50927874]
[1763051605125,0.27132811,101150.0,101120.0,0.70706283]
[1763051605342,0.01841417,101150.0,101130.0,1.03004151]
[1763051605548,0.21614031,101150.0,101130.0,0.323]
[1763051605752,0.21614031,101150.0,101130.0,0.83227874]
[1763051605961,0.26141031,101150.0,101130.0,0.323]
[1763051606164,0.26341031,101150.0,101130.0,0.323]
[1763051606370,0.21814047,101150.0,101130.0,0.323]
[1763051606571,0.30576264,101160.0,101130.0,1.03004214]
[1763051606779,0.31430426,101160.0,101130.0,1.03004214]
[1763051606990,0.001,101150.0,101130.0,1.03004324]
[1763051607195,0.001,101150.0,101140.0,1.03002443]
[1763051607409,0.001,101150.0,101140.0,0.83227874]
[1763051607616,0.19872614,101150.0,101140.0,0.323]
[1763051607827,0.002,101150.0,101140.0,0.323]
[1763051608057,0.31430864,101170.0,101140.0,0.323]
[1763051608279,0.29587715,101160.0,101140.0,0.323]
[1763051608504,0.001,101150.0,101140.0,0.52074429]
[1763051608715,0.001,101150.0,101140.0,0.58223521]
[1763051608945,0.001,101150.0,101140.0,1.09237391]
[1763051609797,0.001,101150.0,101140.0,1.19054306]
[1763051610016,0.1976886,101170.0,101150.0,0.36641874]
[1763051610253,0.1976886,101170.0,101150.0,0.87569748]
[1763051610462,0.1976886,101170.0,101150.0,0.83227874]
[1763051611130,0.1976886,101170.0,101150.0,0.323]
[1763051611341,0.1976886,101170.0,101160.0,0.323]
[1763051611559,0.30572348,101180.0,101160.0,0.323]
[1763051611780,0.25288135,101190.0,101160.0,0.323]
[1763051611994,0.2958376,101180.0,101160.0,0.323]
[1763051612417,0.19768706,101170.0,101160.0,0.323]
[1763051612626,0.2958376,101180.0,101160.0,0.323]
[1763051613067,0.25388135,101190.0,101160.0,0.50927874]
[1763051613271,0.19872896,101190.0,101170.0,0.323]
[1763051613419,0.19772896,101190.0,101170.0,0.323]
[1763051613616,0.32581155,101200.0,101170.0,0.323]
[1763051613825,0.19765022,101190.0,101170.0,0.83227874]
[1763051614221,0.30581155,101200.0,101170.0,1.02996548]
[1763051614637,0.30581155,101200.0,101170.0,0.50927874]
[1763051614836,0.19764829,101190.0,101160.0,0.29793343]
[1763051615042,0.30581155,101200.0,101170.0,0.70696526]
[1763051615300,0.001,101190.0,101170.0,0.70696526]
[1763051615503,0.001,101190.0,101180.0,0.83227874]
[1763051615708,0.19764798,101190.0,101180.0,0.323]
[1763051615916,0.24316798,101190.0,101180.0,0.323]
[1763051616242,0.24416798,101190.0,101180.0,0.323]
[1763051616450,0.19864798,101190.0,101180.0,0.323]
[1763051616651,0.19764798,101190.0,101180.0,0.323]
[1763051616879,0.29593013,101200.0,101180.0,0.323]
[1763051617285,0.29580064,101200.0,101180.0,0.323]
[1763051617498,0.08653437,101200.0,101180.0,0.52066749]
[1763051617695,0.2728817,101210.0,101180.0,0.52066749]
[1763051617696,0.2428802,101210.0,101190.0,0.323]
[1763051617914,0.19760974,101210.0,101190.0,0.83227874]
[1763051618111,0.19762845,101200.0,101190.0,0.323]
[1763051618321,0.19761119,101210.0,101190.0,0.323]
[1763051618523,0.30571984,101220.0,101190.0,0.5206477]
[1763051618732,0.001,101200.0,101190.0,1.02992644]
[1763051618849,0.001,101200.0,101190.0,1.0300656]
[1763051619050,0.30571984,101220.0,101190.0,1.0300656]
[1763051619270,0.19761004,101210.0,101190.0,0.8334179]
[1763051619537,0.30571984,101220.0,101190.0,0.52178547]
[1763051619737,0.19758974,101220.0,101190.0,1.0409466]
[1763051619928,0.27285007,101230.0,101190.0,1.0409466]
[1763051620130,0.19759035,101220.0,101190.0,1.0409466]
[1763051620503,0.19759035,101220.0,101200.0,0.323]
[1763051620717,0.19759076,101220.0,101200.0,0.83227874]
[1763051621001,0.19759076,101220.0,101200.0,0.323]
[1763051621612,0.19761074,101210.0,101200.0,0.323]
[1763051621802,0.24313074,101210.0,101200.0,0.323]
[1763051621995,0.24313074,101210.0,101190.0,0.32313916]
[1763051622380,0.19762845,101200.0,101190.0,0.32313916]
[1763051623108,0.24313074,101210.0,101190.0,0.32313916]
[1763051623357,0.4548576,101200.0,101190.0,0.00013916]
[1763051623560,0.35668845,101200.0,101190.0,0.00013916]
[1763051624136,0.19762845,101200.0,101190.0,0.00013916]
[1763051624697,0.4548576,101200.0,101190.0,0.00113916]
[1763051624932,0.4548576,101200.0,101190.0,0.00213916]
[1763051625322,0.3607576,101200.0,101190.0,0.00213916]
[1763051626340,0.96413634,101200.0,101190.0,0.00213916]
[1763051626538,0.98413634,101200.0,101190.0,0.00213916]
[1763051627337,0.98413634,101200.0,101190.0,0.00113916]
[1763051627788,0.98413634,101200.0,101190.0,0.00013916]
[1763051628864,0.98613634,101200.0,101190.0,0.00013916]
[1763051629069,0.20757141,101170.0,101140.0,0.07116051]
[1763051629275,0.27253141,101170.0,101140.0,1.1013241]
[1763051629479,0.31805141,101170.0,101140.0,1.1013241]
[1763051629687,0.24324614,101150.0,101140.0,0.00013921]
[1763051629850,0.21771262,101160.0,101140.0,0.00013921]
[1763051630052,0.21771262,101160.0,101140.0,0.32313921]
[1763051630245,0.19772614,101150.0,101140.0,0.32313921]
[1763051630853,0.19772614,101150.0,101140.0,0.00113921]
[1763051631099,0.24324614,101150.0,101140.0,0.00113921]
[1763051631502,0.30820614,101150.0,101140.0,0.00313921]
[1763051631715,0.42230614,101150.0,101140.0,0.00213921]
[1763051632147,0.32820614,101150.0,101140.0,0.00413921]
[1763051632349,0.52047529,101150.0,101140.0,0.00413921]
[1763051632487,0.52047529,101150.0,101140.0,0.00213921]
[1763051632834,0.42637529,101150.0,101140.0,0.00213921]
[1763051633067,0.40637529,101150.0,101140.0,0.00213921]
[1763051633283,0.34141529,101150.0,101140.0,0.00213921]
[1763051633489,0.40637529,101150.0,101140.0,0.00013921]
[1763051633713,0.04552,101150.0,101140.0,0.00113921]
[1763051633922,0.19772614,101150.0,101140.0,0.00113921]
[1763051634556,0.19771262,101160.0,101140.0,0.00113921]
[1763051634740,0.34141529,101150.0,101140.0,0.00113921]
[1763051635195,0.40637529,101150.0,101140.0,0.00113921]
[1763051635400,0.50047529,101150.0,101140.0,0.00113921]
[1763051636541,1.02975403,101150.0,101140.0,0.00013921]
[1763051637363,0.52047529,101150.0,101140.0,0.00113921]
[1763051640085,0.34141529,101150.0,101140.0,0.00113921]
[1763051640320,0.29589529,101150.0,101140.0,0.00113921]
[1763051640566,0.19771262,101160.0,101140.0,0.00113921]
[1763051640805,0.29589529,101150.0,101140.0,0.32413921]
[1763051641044,0.34395529,101150.0,101140.0,0.32413921]
[1763051641769,0.19772614,101150.0,101140.0,0.32413921]
[1763051642022,0.30843614,101150.0,101140.0,0.00113921]
[1763051642518,0.42257614,101150.0,101140.0,0.00113921]
[1763051642998,0.24578614,101150.0,101140.0,0.00113921]
[1763051643246,0.19772614,101150.0,101140.0,0.00113921]
[1763051643473,0.24578614,101150.0,101140.0,0.00113921]
[1763051643726,0.04806,101150.0,101140.0,0.00113921]
[1763051643976,0.31588177,101160.0,101140.0,0.00113921]
[1763051643977,0.06552,101170.0,101150.0,0.19772553]
[1763051644205,0.24320236,101190.0,101160.0,0.83761414]
[1763051644411,0.19766773,101180.0,101150.0,0.40877217]
[1763051644614,0.19766773,101180.0,101160.0,0.6399078]
[1763051645242,0.19768706,101170.0,101160.0,0.9629078]
[1763051645651,0.19768706,101170.0,101160.0,0.323]
[1763051646530,0.001,101170.0,101160.0,0.323]
[1763051646735,0.001,101170.0,101160.0,1.20403314]
[1763051646949,0.19768236,101190.0,101170.0,0.52068643]
[1763051647163,0.19762845,101200.0,101170.0,1.16059412]
[1763051647392,0.19761074,101210.0,101190.0,0.9629078]
[1763051647611,0.24397928,101210.0,101190.0,0.323]
[1763051648043,0.29575967,101220.0,101190.0,1.1605547]
[1763051648273,0.09816915,101220.0,101190.0,1.17043709]
[1763051648502,0.19759048,101220.0,101200.0,0.83753561]
[1763051648721,0.19759048,101220.0,101200.0,0.6399078]
[1763051648972,0.25564395,101230.0,101200.0,0.83753564]
[1763051649209,0.24563186,101230.0,101200.0,0.84741706]
[1763051649437,0.19757186,101230.0,101210.0,0.323]
[1763051649660,0.1975894,101220.0,101210.0,0.323]
[1763051649883,0.19757186,101230.0,101210.0,0.323]
[1763051650341,0.1975894,101220.0,101190.0,0.33386744]
[1763051650570,0.19762845,101200.0,101190.0,0.97277524]
[1763051650795,0.1976153,101210.0,101190.0,1.1704229]
[1763051651028,0.2439853,101210.0,101190.0,0.00013921]
[1763051651290,0.19762845,101200.0,101190.0,0.32313921]
[1763051651531,0.19762845,101200.0,101190.0,0.00013921]
[1763051651755,0.19762845,101200.0,101190.0,0.00113921]
[1763051652000,1.0995354,101200.0,101190.0,0.00113921]
[1763051652211,0.4796276,101200.0,101190.0,0.00113921]
[1763051652433,1.1195354,101200.0,101190.0,0.00113921]
[1763051652901,1.1195354,101200.0,101190.0,0.00013921]
[1763051653374,0.4796276,101200.0,101190.0,0.00413921]
[1763051653599,1.1195354,101200.0,101190.0,0.00213921]
[1763051653860,1.1195354,101200.0,101190.0,0.00013921]
[1763051654106,0.4816276,101200.0,101190.0,0.00013921]
[1763051655007,1.1215354,101200.0,101190.0,0.00013921]
[1763051655432,0.4616276,101200.0,101190.0,0.00013921]
[1763051655647,0.4816276,101200.0,101190.0,0.00013921]
[1763051655868,0.2977976,101200.0,101190.0,0.00013921]
[1763051656285,0.002,101200.0,101190.0,0.00013921]
[1763051656504,0.002,101200.0,101190.0,0.52078719]
[1763051656939,0.002,101200.0,101190.0,0.32313921]
[1763051657150,0.25382035,101230.0,101200.0,0.52062469]
[1763051657373,0.20745035,101230.0,101200.0,1.16053249]
[1763051657630,0.29576443,101220.0,101200.0,0.323]
[1763051658046,0.19759146,101220.0,101200.0,0.323]
[1763051658470,0.46237982,101240.0,101200.0,0.323]
[1763051658684,0.25486997,101240.0,101210.0,0.19760868]
[1763051658894,0.14647997,101240.0,101210.0,0.20748912]
[1763051659103,0.34403117,101240.0,101200.0,0.323]
[1763051659316,0.80638777,101240.0,101200.0,0.53050986]
[1763051659499,0.02,101230.0,101210.0,0.20748923]
[1763051659745,0.26486997,101240.0,101210.0,0.20748923]
[1763051660141,0.26686997,101240.0,101210.0,0.19760726]
[1763051660349,0.80838777,101240.0,101210.0,0.20748761]
[1763051660522,0.90677777,101240.0,101210.0,0.20748761]
[1763051660738,0.04637,101230.0,101220.0,0.19758788]
[1763051660937,0.00225082,101240.0,101230.0,0.52056989]
[1763051661144,0.00225082,101240.0,101230.0,1.16047769]
[1763051661302,0.00225082,101240.0,101230.0,1.2221512]
[1763051662106,0.00270201,101240.0,101230.0,1.2221512]
[1763051662321,0.00070201,101240.0,101230.0,1.2221512]
[1763051662736,0.00170201,101240.0,101230.0,1.2221512]
[1763051663141,0.00070201,101240.0,101230.0,1.2251512]
[1763051663346,0.00070201,101240.0,101230.0,1.2281512]
[1763051664021,0.00070201,101240.0,101230.0,1.23818018]
[1763051664209,0.00070201,101240.0,101230.0,1.2281512]
[1763051664466,0.00070201,101240.0,101230.0,0.34725477]
[1763051664659,0.00070201,101240.0,101230.0,0.02425477]
[1763051665281,0.00070201,101240.0,101230.0,0.329]
[1763051665496,0.00070201,101240.0,101230.0,0.52656989]
[1763051665696,0.00070201,101240.0,101230.0,0.329]
[1763051665853,0.00070201,101240.0,101230.0,0.52056989]
[1763051666270,0.00070201,101240.0,101230.0,0.52456989]
[1763051666448,0.00070201,101240.0,101230.0,1.16447769]
[1763051667064,0.00070201,101240.0,101230.0,0.52456989]
[1763051667277,0.00070201,101240.0,101230.0,1.20789643]
[1763051667507,0.00070201,101240.0,101230.0,1.2269118]
[1763051668428,0.00070201,101240.0,101230.0,0.587004]
[1763051668635,0.00070201,101240.0,101230.0,1.2269118]
[1763051669739,0.0002,101250.0,101230.0,1.18349306]
[1763051670005,0.0002,101280.0,101270.0,1.20381839]
[1763051670455,0.0002,101280.0,101270.0,1.2190351]
[1763051670884,0.0002,101280.0,101270.0,1.31720425]
[1763051671333,0.0002,101300.0,101290.0,0.52045285]
[1763051671576,0.0002,101300.0,101290.0,1.20377939]
[1763051671747,0.0002,101300.0,101290.0,1.2196025]
[1763051671903,0.0002,101300.0,101290.0,1.29227181]
[1763051672580,0.0002,101300.0,101290.0,1.29327181]
[1763051672902,0.0002,101300.0,101290.0,1.29227181]
[1763051673115,0.00028,101310.0,101300.0,1.16034116]
[1763051673317,0.0002,101320.0,101310.0,0.56383261]
[1763051673518,0.0002,101320.0,101310.0,0.66200176]
[1763051673728,0.0002,101320.0,101310.0,1.32123258]
[1763051673927,0.0002,101320.0,101310.0,1.3921253]
[1763051674132,0.0002,101320.0,101310.0,1.37396834]
[1763051674375,0.0002,101330.0,101320.0,0.52039439]
[1763051674595,0.0002,101330.0,101320.0,1.29161063]
[1763051675174,0.0002,101330.0,101320.0,1.23887681]
[1763051675609,0.0002,101330.0,101320.0,0.60096901]
[1763051675811,0.0002,101330.0,101320.0,1.24087681]
[1763051676013,0.0002,101330.0,101320.0,1.24287681]
[1763051676263,0.0002,101330.0,101320.0,1.20772093]
[1763051677028,0.0002,101330.0,101320.0,0.56781313]
[1763051677213,0.0002,101330.0,101320.0,1.20772093]
[1763051677581,0.0002,101330.0,101320.0,1.01032654]
[1763051677790,0.0002,101330.0,101320.0,1.20772093]
[1763051678708,0.0002,101330.0,101320.0,1.01032654]
[1763051678912,0.0002,101330.0,101320.0,1.20772093]
[1763051681134,0.00245533,101330.0,101320.0,1.20772093]
[1763051681539,0.00245533,101330.0,101320.0,1.16430219]
[1763051681738,0.00245533,101330.0,101320.0,0.9669078]
[1763051681888,0.00245533,101330.0,101320.0,1.16430219]
[1763051682332,0.00245533,101330.0,101320.0,1.20772093]
[1763051683565,0.0002,101340.0,101330.0,1.16028271]
[1763051683775,0.0002,101360.0,101350.0,0.2407547]
[1763051683989,0.0002,101360.0,101350.0,1.29686467]
[1763051684349,0.0002,101370.0,101350.0,1.25344593]
[1763051684550,0.0002,101370.0,101360.0,0.04341874]
[1763051684752,0.0002,101370.0,101360.0,0.8565825]
[1763051684947,0.00065173,101370.0,101360.0,0.90000124]
[1763051685159,0.00165327,101370.0,101360.0,0.90000124]